[Event "Early-Titled-Tuesday-Blitz-June-18-2024"]
[Site "Chess.com"]
[Date "2024.06.18"]
[Round "8"]
[White "unbreakablepawn35"]
[Black "Orest_Vovk"]
[Result "0-1"]
[WhiteElo "2395"]
[BlackElo "2555"]
[TimeControl "180+1"]
[EndTime "9:30:15 PDT"]
[Termination "Orest_Vovk won by resignation"]

1. c4 {[%clk 0:03:00.9]} 1... g5 {[%clk 0:02:52.7]} 2. d4 {[%clk 0:02:57.6]}
2... h6 {[%clk 0:02:53.1]} 3. e4 {[%clk 0:02:57.2]} 3... Bg7 {[%clk 0:02:53.7]}
4. Nc3 {[%clk 0:02:57.5]} 4... c5 {[%clk 0:02:54.3]} 5. d5 {[%clk 0:02:57.4]}
5... Bxc3+ {[%clk 0:02:54.8]} 6. bxc3 {[%clk 0:02:57.9]} 6... d6 {[%clk
0:02:55.6]} 7. h4 {[%clk 0:02:57.9]} 7... Qa5 {[%clk 0:02:56]} 8. hxg5 {[%clk
0:02:46.2]} 8... hxg5 {[%clk 0:02:56.9]} 9. Rxh8 {[%clk 0:02:34.8]} 9... Qxc3+
{[%clk 0:02:56.8]} 10. Qd2 {[%clk 0:02:32.5]} 10... Qxh8 {[%clk 0:02:57.7]} 11.
Bb2 {[%clk 0:02:32.6]} 11... Qh4 {[%clk 0:02:52.5]} 12. Bd3 {[%clk 0:02:28.2]}
12... g4 {[%clk 0:02:41.9]} 13. O-O-O {[%clk 0:02:21]} 13... Nd7 {[%clk
0:02:41]} 14. g3 {[%clk 0:02:19.6]} 14... Qh2 {[%clk 0:02:33]} 15. Qf4 {[%clk
0:02:18.4]} 15... Qh6 {[%clk 0:02:28.4]} 16. Qxh6 {[%clk 0:02:08]} 16... Nxh6
{[%clk 0:02:29.3]} 17. Ne2 {[%clk 0:02:07.2]} 17... Ne5 {[%clk 0:02:28.6]} 18.
Bxe5 {[%clk 0:02:06.6]} 18... dxe5 {[%clk 0:02:29.5]} 19. Rh1 {[%clk 0:02:06]}
19... Ng8 {[%clk 0:02:29.5]} 20. Nc3 {[%clk 0:01:57.9]} 20... Bd7 {[%clk
0:02:27.7]} 21. Nd1 {[%clk 0:01:53.2]} 21... Kf8 {[%clk 0:02:26.2]} 22. Ne3
{[%clk 0:01:52.9]} 22... Kg7 {[%clk 0:02:25.6]} 23. Rh5 {[%clk 0:01:42.5]} 23...
f6 {[%clk 0:02:22.8]} 24. Rh4 {[%clk 0:01:42.5]} 24... Nh6 {[%clk 0:02:22.9]}
25. Be2 {[%clk 0:01:43.1]} 25... a6 {[%clk 0:02:14.9]} 26. Nxg4 {[%clk
0:01:29.6]} 26... Bxg4 {[%clk 0:02:14.6]} 27. Bxg4 {[%clk 0:01:30.5]} 27... b5
{[%clk 0:02:14.3]} 28. Be2 {[%clk 0:01:18.1]} 28... Rb8 {[%clk 0:02:09.6]} 29.
Kc2 {[%clk 0:01:06.9]} 29... b4 {[%clk 0:01:59.6]} 30. Kd3 {[%clk 0:01:02.3]}
30... a5 {[%clk 0:01:59.4]} 31. Bd1 {[%clk 0:01:02.7]} 31... Nf7 {[%clk
0:01:49.6]} 32. f4 {[%clk 0:01:01.5]} 32... exf4 {[%clk 0:01:48.4]} 33. gxf4
{[%clk 0:01:02.4]} 33... Rh8 {[%clk 0:01:36.9]} 34. Rxh8 {[%clk 0:00:59.2]}
34... Kxh8 {[%clk 0:01:37.8]} 35. Bh5 {[%clk 0:00:39.6]} 35... Kg7 {[%clk
0:01:29.2]} 36. Bd1 {[%clk 0:00:18.7]} 36... Kh6 {[%clk 0:01:13.7]} 37. Bg4
{[%clk 0:00:18.4]} 37... a4 {[%clk 0:01:09]} 38. Bd7 {[%clk 0:00:16.9]} 38... a3
{[%clk 0:01:07.6]} 39. Ba4 {[%clk 0:00:14.5]} 39... Kh5 {[%clk 0:01:06]} 40. Be8
{[%clk 0:00:14.6]} 40... b3 {[%clk 0:00:52.7]} 41. Bxf7+ {[%clk 0:00:10.8]}
41... Kh6 {[%clk 0:00:52.2]} 42. d6 {[%clk 0:00:05.8]} 42... exd6 {[%clk
0:00:49]} 43. e5 {[%clk 0:00:04.1]} 43... fxe5 {[%clk 0:00:48.7]} 44. fxe5
{[%clk 0:00:04.4]} 44... dxe5 {[%clk 0:00:48.7]} 45. axb3 {[%clk 0:00:02.5]}
45... a2 {[%clk 0:00:48.5]} 46. Ke4 {[%clk 0:00:03.4]} 46... a1=Q {[%clk
0:00:48.5]} 47. Bd5 {[%clk 0:00:02.7]} 0-1

[Event "Early-Titled-Tuesday-Blitz-June-18-2024"]
[Site "Chess.com"]
[Date "2024.06.18"]
[Round "8"]
[White "Manukyan_Artak"]
[Black "only_strong_moves"]
[Result "1-0"]
[WhiteElo "2510"]
[BlackElo "2640"]
[TimeControl "180+1"]
[EndTime "9:30:16 PDT"]
[Termination "Manukyan_Artak won by checkmate"]

1. e4 {[%clk 0:02:56.2]} 1... e5 {[%clk 0:02:59.9]} 2. Nf3 {[%clk 0:02:55.8]}
2... Nc6 {[%clk 0:03:00.2]} 3. d4 {[%clk 0:02:54.6]} 3... exd4 {[%clk
0:03:00.1]} 4. Nxd4 {[%clk 0:02:55.5]} 4... Nf6 {[%clk 0:03:00.5]} 5. Nxc6
{[%clk 0:02:54.8]} 5... bxc6 {[%clk 0:03:01.4]} 6. e5 {[%clk 0:02:54]} 6... Qe7
{[%clk 0:03:01.3]} 7. Qe2 {[%clk 0:02:51.4]} 7... Nd5 {[%clk 0:03:01.7]} 8. c4
{[%clk 0:02:50.9]} 8... Ba6 {[%clk 0:02:59.7]} 9. b3 {[%clk 0:02:50.8]} 9... f6
{[%clk 0:02:59]} 10. exf6 {[%clk 0:02:50.3]} 10... Nxf6 {[%clk 0:02:58.6]} 11.
Bb2 {[%clk 0:02:48.6]} 11... O-O-O {[%clk 0:02:56.6]} 12. Qxe7 {[%clk
0:02:42.1]} 12... Bxe7 {[%clk 0:02:57.5]} 13. Nc3 {[%clk 0:02:37.8]} 13... Rde8
{[%clk 0:02:55.4]} 14. O-O-O {[%clk 0:02:37.3]} 14... Ng4 {[%clk 0:02:53.7]} 15.
Ne4 {[%clk 0:02:30.8]} 15... Bh4 {[%clk 0:02:43.1]} 16. f3 {[%clk 0:02:22.3]}
16... Ne3 {[%clk 0:02:42.5]} 17. Rd2 {[%clk 0:01:47.9]} 17... d5 {[%clk
0:02:40.1]} 18. Nc5 {[%clk 0:01:38.9]} 18... Bb7 {[%clk 0:02:29.9]} 19. g3
{[%clk 0:01:18.8]} 19... Be7 {[%clk 0:02:25.2]} 20. Bh3+ {[%clk 0:01:13.5]}
20... Kb8 {[%clk 0:02:23.7]} 21. Nxb7 {[%clk 0:01:05]} 21... Kxb7 {[%clk
0:02:24.6]} 22. cxd5 {[%clk 0:01:05.2]} 22... cxd5 {[%clk 0:02:20.5]} 23. Bxg7
{[%clk 0:00:59.8]} 23... Rhg8 {[%clk 0:02:18.5]} 24. Bd4 {[%clk 0:00:59.6]}
24... Ba3+ {[%clk 0:02:17.3]} 25. Kb1 {[%clk 0:00:55.8]} 25... c5 {[%clk
0:02:04.6]} 26. Bxe3 {[%clk 0:00:46.7]} 26... Rxe3 {[%clk 0:02:05.5]} 27. Rxd5
{[%clk 0:00:46.9]} 27... Rge8 {[%clk 0:02:06.2]} 28. Kc2 {[%clk 0:00:38.4]}
28... Rxf3 {[%clk 0:02:04.3]} 29. Bg2 {[%clk 0:00:37.9]} 29... Re2+ {[%clk
0:01:54.2]} 30. Rd2 {[%clk 0:00:37.3]} 30... Rxg2 {[%clk 0:01:53.9]} 31. Rxg2
{[%clk 0:00:37.9]} 31... Bb4 {[%clk 0:01:53.9]} 32. Rd1 {[%clk 0:00:34.5]} 32...
Rc3+ {[%clk 0:01:53.2]} 33. Kb2 {[%clk 0:00:34.3]} 33... Rf3 {[%clk 0:01:53.2]}
34. a3 {[%clk 0:00:30.1]} 34... Bc3+ {[%clk 0:01:53.1]} 35. Ka2 {[%clk 0:00:30]}
35... Bd4 {[%clk 0:01:54]} 36. Rc2 {[%clk 0:00:24.7]} 36... a5 {[%clk
0:01:53.7]} 37. b4 {[%clk 0:00:20]} 37... axb4 {[%clk 0:01:54.3]} 38. axb4
{[%clk 0:00:20.9]} 38... Kb6 {[%clk 0:01:54.9]} 39. bxc5+ {[%clk 0:00:20.7]}
39... Bxc5 {[%clk 0:01:51.5]} 40. Rb1+ {[%clk 0:00:20.5]} 40... Kc6 {[%clk
0:01:51.7]} 41. Rbc1 {[%clk 0:00:20.8]} 41... Ra3+ {[%clk 0:01:52.2]} 42. Kb2
{[%clk 0:00:20.6]} 42... Ra5 {[%clk 0:01:53.1]} 43. g4 {[%clk 0:00:19]} 43...
Rb5+ {[%clk 0:01:53]} 44. Ka2 {[%clk 0:00:17.4]} 44... Ra5+ {[%clk 0:01:53.2]}
45. Kb3 {[%clk 0:00:17.8]} 45... Rb5+ {[%clk 0:01:53.8]} 46. Ka4 {[%clk
0:00:18]} 46... Kb6 {[%clk 0:01:51.1]} 47. h4 {[%clk 0:00:15.2]} 47... Rb4+
{[%clk 0:01:50.1]} 48. Ka3 {[%clk 0:00:14.1]} 48... Rc4+ {[%clk 0:01:48.1]} 49.
Kb3 {[%clk 0:00:13.9]} 49... Rb4+ {[%clk 0:01:48.7]} 50. Ka2 {[%clk 0:00:13.4]}
50... Ra4+ {[%clk 0:01:49.3]} 51. Kb1 {[%clk 0:00:13.7]} 51... Bd4 {[%clk
0:01:47.1]} 52. Rc4 {[%clk 0:00:12.9]} 52... Ra1+ {[%clk 0:01:44.6]} 53. Kc2
{[%clk 0:00:13.4]} 53... Ra2+ {[%clk 0:01:45.2]} 54. Kd3 {[%clk 0:00:13.9]}
54... Bf2 {[%clk 0:01:43.3]} 55. Rb1+ {[%clk 0:00:13.5]} 55... Ka5 {[%clk
0:01:42.9]} 56. Rc2 {[%clk 0:00:14.1]} 56... Ra3+ {[%clk 0:01:42.8]} 57. Ke4
{[%clk 0:00:14]} 57... Bxh4 {[%clk 0:01:41.7]} 58. Rc8 {[%clk 0:00:12.2]} 58...
Ra4+ {[%clk 0:01:40.9]} 59. Kd5 {[%clk 0:00:11.8]} 59... Rb4 {[%clk 0:01:22.7]}
60. Ra8+ {[%clk 0:00:11.7]} 60... Kb5 {[%clk 0:01:23]} 61. Rb8+ {[%clk
0:00:12.3]} 61... Ka6 {[%clk 0:01:23]} 62. R8xb4 {[%clk 0:00:12.9]} 62... Be1
{[%clk 0:01:22.4]} 63. Ra4+ {[%clk 0:00:12.9]} 63... Ba5 {[%clk 0:01:23.3]} 64.
g5 {[%clk 0:00:12.7]} 64... h5 {[%clk 0:01:24]} 65. g6 {[%clk 0:00:12.8]} 65...
h4 {[%clk 0:01:24.5]} 66. g7 {[%clk 0:00:13.4]} 66... h3 {[%clk 0:01:25.4]} 67.
g8=Q {[%clk 0:00:13.9]} 67... h2 {[%clk 0:01:26.3]} 68. Qa8# {[%clk 0:00:14.3]}
1-0

[Event "Early-Titled-Tuesday-Blitz-June-18-2024"]
[Site "Chess.com"]
[Date "2024.06.18"]
[Round "8"]
[White "Defenstrator"]
[Black "annazero"]
[Result "1-0"]
[WhiteElo "2396"]
[BlackElo "2518"]
[TimeControl "180+1"]
[EndTime "9:30:16 PDT"]
[Termination "Defenstrator won by checkmate"]

1. e4 {[%clk 0:02:58.7]} 1... g6 {[%clk 0:03:00.9]} 2. d4 {[%clk 0:02:55.7]}
2... Bg7 {[%clk 0:03:01.8]} 3. Nf3 {[%clk 0:02:54.4]} 3... d6 {[%clk 0:03:02.7]}
4. Bc4 {[%clk 0:02:53.7]} 4... Nf6 {[%clk 0:03:02.6]} 5. Qe2 {[%clk 0:02:53.3]}
5... O-O {[%clk 0:03:01.9]} 6. e5 {[%clk 0:02:53.5]} 6... dxe5 {[%clk
0:03:02.4]} 7. dxe5 {[%clk 0:02:53.9]} 7... Nd5 {[%clk 0:03:03.2]} 8. O-O {[%clk
0:02:49.5]} 8... c6 {[%clk 0:03:03.6]} 9. Rd1 {[%clk 0:02:37.6]} 9... Bg4 {[%clk
0:03:03.9]} 10. Bg5 {[%clk 0:02:27.1]} 10... Bxf3 {[%clk 0:02:56]} 11. Qxf3
{[%clk 0:02:26.9]} 11... Bxe5 {[%clk 0:02:56.7]} 12. Nc3 {[%clk 0:02:07.9]}
12... Qc7 {[%clk 0:02:37.5]} 13. Bxd5 {[%clk 0:01:51.1]} 13... cxd5 {[%clk
0:02:37.6]} 14. Nxd5 {[%clk 0:01:50.8]} 14... Qc4 {[%clk 0:02:27.4]} 15. Bxe7
{[%clk 0:01:29]} 15... Nc6 {[%clk 0:02:20.3]} 16. Bxf8 {[%clk 0:01:27.2]} 16...
Rxf8 {[%clk 0:02:21.2]} 17. c3 {[%clk 0:01:23.1]} 17... Qc5 {[%clk 0:02:00.2]}
18. b4 {[%clk 0:01:11.2]} 18... Qc4 {[%clk 0:01:59.4]} 19. a4 {[%clk 0:01:00.3]}
19... a6 {[%clk 0:01:56.5]} 20. Rac1 {[%clk 0:00:43]} 20... Qh4 {[%clk
0:01:55.9]} 21. g3 {[%clk 0:00:43]} 21... Qh3 {[%clk 0:01:56.4]} 22. b5 {[%clk
0:00:37.6]} 22... axb5 {[%clk 0:01:53.3]} 23. axb5 {[%clk 0:00:38.5]} 23... Nd8
{[%clk 0:01:52.5]} 24. Re1 {[%clk 0:00:33.6]} 24... Bg7 {[%clk 0:01:50]} 25.
Rcd1 {[%clk 0:00:24.9]} 25... Ne6 {[%clk 0:01:50]} 26. Nf4 {[%clk 0:00:24.3]}
26... Qf5 {[%clk 0:01:47.4]} 27. Rd5 {[%clk 0:00:20.1]} 27... Qf6 {[%clk
0:01:41.8]} 28. Qe3 {[%clk 0:00:17]} 28... Ng5 {[%clk 0:01:41.3]} 29. h4 {[%clk
0:00:14]} 29... Ne6 {[%clk 0:01:34.1]} 30. Nxe6 {[%clk 0:00:14.5]} 30... fxe6
{[%clk 0:01:32]} 31. Qxe6+ {[%clk 0:00:15.4]} 31... Qxe6 {[%clk 0:01:31.5]} 32.
Rxe6 {[%clk 0:00:16.3]} 32... Bxc3 {[%clk 0:01:32.3]} 33. Rd7 {[%clk 0:00:16.2]}
33... b6 {[%clk 0:01:30.5]} 34. Kg2 {[%clk 0:00:16.3]} 34... Bb4 {[%clk
0:01:30]} 35. f4 {[%clk 0:00:12.9]} 35... Ra8 {[%clk 0:01:29.2]} 36. Rxb6 {[%clk
0:00:12.4]} 36... Ra2+ {[%clk 0:01:27.8]} 37. Kf3 {[%clk 0:00:12.9]} 37... Ra3+
{[%clk 0:01:28.6]} 38. Ke4 {[%clk 0:00:11.7]} 38... Ra4 {[%clk 0:01:27.2]} 39.
Rb8+ {[%clk 0:00:11.5]} 39... Bf8+ {[%clk 0:01:27.5]} 40. Kd5 {[%clk 0:00:11.5]}
40... Ra1 {[%clk 0:01:27.4]} 41. Rdd8 {[%clk 0:00:11]} 41... Rd1+ {[%clk
0:01:28]} 42. Kc6 {[%clk 0:00:11.5]} 42... Rc1+ {[%clk 0:01:28.3]} 43. Kb7
{[%clk 0:00:11.6]} 43... Kf7 {[%clk 0:01:27.8]} 44. Rxf8+ {[%clk 0:00:11.8]}
44... Ke6 {[%clk 0:01:28.7]} 45. Rh8 {[%clk 0:00:10.4]} 45... h5 {[%clk
0:01:28.2]} 46. Rbc8 {[%clk 0:00:09.3]} 46... Rb1 {[%clk 0:01:27.7]} 47. b6
{[%clk 0:00:09.8]} 47... Kf5 {[%clk 0:01:27.8]} 48. Rc5+ {[%clk 0:00:09.6]}
48... Kg4 {[%clk 0:01:28.1]} 49. Rg5+ {[%clk 0:00:09.4]} 49... Kf3 {[%clk
0:01:28.7]} 50. Rxg6 {[%clk 0:00:07.8]} 50... Ke4 {[%clk 0:01:29.1]} 51. Rxh5
{[%clk 0:00:07.8]} 51... Kf3 {[%clk 0:01:29.1]} 52. Rc5 {[%clk 0:00:07.2]} 52...
Ke4 {[%clk 0:01:29.5]} 53. Kc7 {[%clk 0:00:07.7]} 53... Kf3 {[%clk 0:01:28.3]}
54. b7 {[%clk 0:00:07.9]} 54... Ke4 {[%clk 0:01:28.8]} 55. b8=Q {[%clk
0:00:08.1]} 55... Rxb8 {[%clk 0:01:29.5]} 56. Kxb8 {[%clk 0:00:09]} 56... Kd4
{[%clk 0:01:30.4]} 57. Rc7 {[%clk 0:00:09]} 57... Kd5 {[%clk 0:01:30.8]} 58. h5
{[%clk 0:00:09.1]} 58... Ke4 {[%clk 0:01:31.7]} 59. h6 {[%clk 0:00:09.5]} 59...
Kf3 {[%clk 0:01:32.6]} 60. h7 {[%clk 0:00:10.2]} 60... Kg2 {[%clk 0:01:33.5]}
61. h8=Q {[%clk 0:00:10.5]} 61... Kf3 {[%clk 0:01:34.4]} 62. f5 {[%clk
0:00:09.1]} 62... Kg2 {[%clk 0:01:35.3]} 63. f6 {[%clk 0:00:09.7]} 63... Kf3
{[%clk 0:01:36.2]} 64. f7 {[%clk 0:00:10.3]} 64... Kg2 {[%clk 0:01:37.1]} 65.
f8=Q {[%clk 0:00:10.7]} 65... Kg1 {[%clk 0:01:37.1]} 66. Ra6 {[%clk 0:00:10.2]}
66... Kg2 {[%clk 0:01:38]} 67. g4 {[%clk 0:00:10.8]} 67... Kg1 {[%clk
0:01:38.9]} 68. g5 {[%clk 0:00:11.6]} 68... Kg2 {[%clk 0:01:39.8]} 69. g6 {[%clk
0:00:12.3]} 69... Kg1 {[%clk 0:01:40.7]} 70. g7 {[%clk 0:00:13.1]} 70... Kg2
{[%clk 0:01:41.6]} 71. g8=Q# {[%clk 0:00:13.9]} 1-0

[Event "Early-Titled-Tuesday-Blitz-June-18-2024"]
[Site "Chess.com"]
[Date "2024.06.18"]
[Round "8"]
[White "Roland_Garros_2024"]
[Black "pfalcon1949"]
[Result "1-0"]
[WhiteElo "2200"]
[BlackElo "1788"]
[TimeControl "180+1"]
[EndTime "9:30:16 PDT"]
[Termination "Roland_Garros_2024 won on time"]

1. e4 {[%clk 0:03:00.9]} 1... e6 {[%clk 0:02:58.8]} 2. d4 {[%clk 0:03:00.5]}
2... d5 {[%clk 0:02:58.6]} 3. Nc3 {[%clk 0:03:01.1]} 3... Bb4 {[%clk 0:02:57.4]}
4. e5 {[%clk 0:03:00.8]} 4... Ne7 {[%clk 0:02:54.8]} 5. a3 {[%clk 0:03:00.8]}
5... Bxc3+ {[%clk 0:02:53.4]} 6. bxc3 {[%clk 0:03:01.7]} 6... c5 {[%clk
0:02:53.2]} 7. Qg4 {[%clk 0:03:01.4]} 7... Kf8 {[%clk 0:02:52.4]} 8. Bd3 {[%clk
0:02:50.8]} 8... Qa5 {[%clk 0:02:51.1]} 9. Bd2 {[%clk 0:02:49.6]} 9... Qa4
{[%clk 0:02:47]} 10. Ra2 {[%clk 0:02:25.9]} 10... Nbc6 {[%clk 0:02:35.6]} 11.
Nf3 {[%clk 0:02:23.7]} 11... b6 {[%clk 0:02:20.8]} 12. O-O {[%clk 0:02:18.7]}
12... Ba6 {[%clk 0:02:20.2]} 13. Bxa6 {[%clk 0:02:11.2]} 13... Qxa6 {[%clk
0:02:18.3]} 14. a4 {[%clk 0:01:59.3]} 14... Rc8 {[%clk 0:02:14.8]} 15. Qf4
{[%clk 0:01:28.1]} 15... Qc4 {[%clk 0:01:57]} 16. Raa1 {[%clk 0:01:16.9]} 16...
h6 {[%clk 0:01:53.9]} 17. h4 {[%clk 0:01:07]} 17... Kg8 {[%clk 0:01:51.6]} 18.
h5 {[%clk 0:01:06.5]} 18... cxd4 {[%clk 0:01:42.6]} 19. cxd4 {[%clk 0:01:01.6]}
19... Nf5 {[%clk 0:01:41.4]} 20. c3 {[%clk 0:00:59.6]} 20... Qd3 {[%clk
0:01:22.6]} 21. g4 {[%clk 0:00:55.6]} 21... Nfe7 {[%clk 0:01:22.7]} 22. Kg2
{[%clk 0:00:47.5]} 22... g5 {[%clk 0:00:57.4]} 23. Qf6 {[%clk 0:00:35.2]} 23...
Qe4 {[%clk 0:00:45.4]} 24. Rfe1 {[%clk 0:00:28.8]} 24... Qxg4+ {[%clk
0:00:43.8]} 25. Kf1 {[%clk 0:00:23.5]} 25... Qxh5 {[%clk 0:00:42.2]} 26. Ke2
{[%clk 0:00:13.3]} 26... g4 {[%clk 0:00:37.4]} 27. Rg1 {[%clk 0:00:10.5]} 27...
Kh7 {[%clk 0:00:30.6]} 28. Nh2 {[%clk 0:00:07.8]} 28... g3+ {[%clk 0:00:23.5]}
29. Nf3 {[%clk 0:00:04.3]} 29... Ng8 {[%clk 0:00:15.8]} 30. Qf4 {[%clk
0:00:03.5]} 1-0

[Event "Early-Titled-Tuesday-Blitz-June-18-2024"]
[Site "Chess.com"]
[Date "2024.06.18"]
[Round "8"]
[White "sirinbaba33"]
[Black "banjadvorovi"]
[Result "1-0"]
[WhiteElo "2341"]
[BlackElo "2411"]
[TimeControl "180+1"]
[EndTime "9:30:17 PDT"]
[Termination "sirinbaba33 won by resignation"]

1. e4 {[%clk 0:02:54]} 1... c5 {[%clk 0:02:59.9]} 2. Nf3 {[%clk 0:02:53.9]} 2...
Nc6 {[%clk 0:02:59.9]} 3. Bb5 {[%clk 0:02:53.5]} 3... g6 {[%clk 0:03:00.2]} 4.
O-O {[%clk 0:02:53.4]} 4... Bg7 {[%clk 0:03:00.2]} 5. d3 {[%clk 0:02:53.9]} 5...
Nd4 {[%clk 0:03:00.6]} 6. Nxd4 {[%clk 0:02:53.4]} 6... cxd4 {[%clk 0:03:01.3]}
7. f4 {[%clk 0:02:53]} 7... a6 {[%clk 0:03:01.7]} 8. Bc4 {[%clk 0:02:53.3]} 8...
d6 {[%clk 0:02:59.5]} 9. f5 {[%clk 0:02:52.8]} 9... Nf6 {[%clk 0:02:59.9]} 10.
Bg5 {[%clk 0:02:42.7]} 10... O-O {[%clk 0:02:46.5]} 11. Nd2 {[%clk 0:02:42.5]}
11... Qa5 {[%clk 0:02:32.9]} 12. a3 {[%clk 0:02:31.4]} 12... e6 {[%clk
0:02:04.8]} 13. Qe1 {[%clk 0:02:14.4]} 13... h6 {[%clk 0:01:30.6]} 14. Bxf6
{[%clk 0:01:56.4]} 14... Bxf6 {[%clk 0:01:31.5]} 15. b4 {[%clk 0:01:56.3]} 15...
Qd8 {[%clk 0:01:28]} 16. Qg3 {[%clk 0:01:50.6]} 16... Kg7 {[%clk 0:01:25.2]} 17.
fxg6 {[%clk 0:01:41.4]} 17... fxg6 {[%clk 0:01:23.9]} 18. Nf3 {[%clk 0:01:19]}
18... e5 {[%clk 0:01:24.1]} 19. c3 {[%clk 0:01:15.4]} 19... dxc3 {[%clk
0:01:23.6]} 20. Qe1 {[%clk 0:01:15.3]} 20... Qe7 {[%clk 0:01:18.3]} 21. Qxc3
{[%clk 0:01:10.6]} 21... Bg4 {[%clk 0:01:18.7]} 22. Bd5 {[%clk 0:01:00.5]} 22...
Rac8 {[%clk 0:01:17.7]} 23. Qd2 {[%clk 0:00:56.4]} 23... b5 {[%clk 0:01:06.7]}
24. Kh1 {[%clk 0:00:51.6]} 24... Bxf3 {[%clk 0:00:56.9]} 25. Rxf3 {[%clk
0:00:51.2]} 25... Bg5 {[%clk 0:00:57.5]} 26. Qe2 {[%clk 0:00:44.8]} 26... Rxf3
{[%clk 0:00:56.8]} 27. Qxf3 {[%clk 0:00:44.5]} 27... Rf8 {[%clk 0:00:57.5]} 28.
Qe2 {[%clk 0:00:42.1]} 28... Qf6 {[%clk 0:00:57.3]} 29. Kg1 {[%clk 0:00:22.8]}
29... Qd8 {[%clk 0:00:55.2]} 30. g3 {[%clk 0:00:20.5]} 30... Qb6+ {[%clk
0:00:45.7]} 31. Kg2 {[%clk 0:00:20.4]} 31... Qd4 {[%clk 0:00:28.6]} 32. Ra2
{[%clk 0:00:18.8]} 32... Be3 {[%clk 0:00:20.7]} 33. Qd1 {[%clk 0:00:19]} 33...
Bg1 {[%clk 0:00:11.4]} 34. Qxg1 {[%clk 0:00:16.6]} 34... Qxd3 {[%clk 0:00:11.9]}
35. Rf2 {[%clk 0:00:15.4]} 35... Rd8 {[%clk 0:00:09.8]} 36. Rf7+ {[%clk
0:00:15.4]} 36... Kh8 {[%clk 0:00:09.5]} 37. Qf2 {[%clk 0:00:16.3]} 1-0

[Event "Early-Titled-Tuesday-Blitz-June-18-2024"]
[Site "Chess.com"]
[Date "2024.06.18"]
[Round "8"]
[White "Sic_Transit_GM"]
[Black "rionelG"]
[Result "1-0"]
[WhiteElo "2575"]
[BlackElo "2351"]
[TimeControl "180+1"]
[EndTime "9:30:20 PDT"]
[Termination "Sic_Transit_GM won by checkmate"]

1. Nf3 {[%clk 0:03:00.9]} 1... Nf6 {[%clk 0:02:59.6]} 2. c4 {[%clk 0:03:00]}
2... g6 {[%clk 0:02:59.4]} 3. b4 {[%clk 0:02:58.6]} 3... Bg7 {[%clk 0:02:57.8]}
4. Bb2 {[%clk 0:02:58.9]} 4... O-O {[%clk 0:02:57.7]} 5. g3 {[%clk 0:02:58.8]}
5... d6 {[%clk 0:02:56.2]} 6. Bg2 {[%clk 0:02:58.7]} 6... e5 {[%clk 0:02:55.7]}
7. d3 {[%clk 0:02:58.2]} 7... Nc6 {[%clk 0:02:53.1]} 8. b5 {[%clk 0:02:58]} 8...
Ne7 {[%clk 0:02:52.9]} 9. O-O {[%clk 0:02:58.6]} 9... h6 {[%clk 0:02:52.3]} 10.
Nbd2 {[%clk 0:02:59.3]} 10... Be6 {[%clk 0:02:50.3]} 11. Qc2 {[%clk 0:02:59.8]}
11... c6 {[%clk 0:02:47.4]} 12. a4 {[%clk 0:02:58.9]} 12... Nd7 {[%clk
0:02:45.2]} 13. Rfe1 {[%clk 0:02:57.5]} 13... d5 {[%clk 0:02:40.2]} 14. e3
{[%clk 0:02:46]} 14... Re8 {[%clk 0:02:37.3]} 15. a5 {[%clk 0:02:40.4]} 15... a6
{[%clk 0:02:35.1]} 16. bxc6 {[%clk 0:02:39.8]} 16... bxc6 {[%clk 0:02:36]} 17.
Rab1 {[%clk 0:02:36.3]} 17... Qxa5 {[%clk 0:02:34.2]} 18. Bc3 {[%clk 0:02:34.1]}
18... Qc7 {[%clk 0:02:33.3]} 19. Qb2 {[%clk 0:02:33.8]} 19... Reb8 {[%clk
0:02:30.3]} 20. Qa1 {[%clk 0:02:33.7]} 20... Rxb1 {[%clk 0:02:05.8]} 21. Rxb1
{[%clk 0:02:34.6]} 21... Rb8 {[%clk 0:02:05.8]} 22. Qxa6 {[%clk 0:02:32.7]}
22... Rxb1+ {[%clk 0:02:01.7]} 23. Nxb1 {[%clk 0:02:33.6]} 23... dxc4 {[%clk
0:01:51.8]} 24. dxc4 {[%clk 0:02:33.6]} 24... Qb6 {[%clk 0:01:47]} 25. Qxb6
{[%clk 0:02:30.1]} 25... Nxb6 {[%clk 0:01:46.2]} 26. Nxe5 {[%clk 0:02:28.8]}
26... Nxc4 {[%clk 0:01:41.7]} 27. Nxc4 {[%clk 0:02:26.8]} 27... Bxc4 {[%clk
0:01:40.4]} 28. Bxg7 {[%clk 0:02:21.1]} 28... Kxg7 {[%clk 0:01:41.3]} 29. Nc3
{[%clk 0:02:22]} 29... Kf6 {[%clk 0:01:32.8]} 30. f4 {[%clk 0:02:20]} 30... Ke6
{[%clk 0:01:30.4]} 31. Kf2 {[%clk 0:02:18.5]} 31... Nd5 {[%clk 0:01:27]} 32.
Bxd5+ {[%clk 0:01:57.8]} 32... Bxd5 {[%clk 0:01:24.5]} 33. e4 {[%clk 0:01:56.6]}
33... Bc4 {[%clk 0:01:20.3]} 34. Ke3 {[%clk 0:01:57.1]} 34... c5 {[%clk
0:01:15.6]} 35. g4 {[%clk 0:01:57]} 35... Kd6 {[%clk 0:01:07.8]} 36. h4 {[%clk
0:01:53.8]} 36... Bf1 {[%clk 0:00:54.5]} 37. e5+ {[%clk 0:01:49.2]} 37... Kc6
{[%clk 0:00:44.1]} 38. f5 {[%clk 0:01:49.2]} 38... Bh3 {[%clk 0:00:38]} 39. e6
{[%clk 0:01:45.4]} 39... Kd6 {[%clk 0:00:13.8]} 40. exf7 {[%clk 0:01:45.5]}
40... Ke7 {[%clk 0:00:13.8]} 41. fxg6 {[%clk 0:01:45.1]} 41... Bxg4 {[%clk
0:00:14.4]} 42. Nd5+ {[%clk 0:01:44.2]} 42... Kf8 {[%clk 0:00:13.1]} 43. Kf4
{[%clk 0:01:44.2]} 43... Be6 {[%clk 0:00:12.7]} 44. Nf6 {[%clk 0:01:35.2]} 44...
Kg7 {[%clk 0:00:11.3]} 45. Ke5 {[%clk 0:01:23.1]} 45... Bxf7 {[%clk 0:00:11.3]}
46. gxf7 {[%clk 0:01:21.9]} 46... Kxf7 {[%clk 0:00:12.2]} 47. Kf5 {[%clk
0:01:13.8]} 47... c4 {[%clk 0:00:10.6]} 48. Ne4 {[%clk 0:01:12.9]} 48... Kg7
{[%clk 0:00:09.3]} 49. h5 {[%clk 0:01:11.3]} 49... Kh7 {[%clk 0:00:05.8]} 50.
Kf6 {[%clk 0:01:11.2]} 50... Kg8 {[%clk 0:00:04.5]} 51. Kg6 {[%clk 0:01:11.5]}
51... Kh8 {[%clk 0:00:05]} 52. Kxh6 {[%clk 0:01:12.1]} 52... Kg8 {[%clk
0:00:05.3]} 53. Kg6 {[%clk 0:01:06.7]} 53... Kh8 {[%clk 0:00:06.2]} 54. h6
{[%clk 0:01:05.3]} 54... Kg8 {[%clk 0:00:06.5]} 55. h7+ {[%clk 0:01:06]} 55...
Kh8 {[%clk 0:00:06.4]} 56. Ng5 {[%clk 0:01:06.7]} 56... c3 {[%clk 0:00:05.6]}
57. Nf7# {[%clk 0:01:07.6]} 1-0